[Event "Budapest One Week GM-B 03-2025"]
[Site "Budapest"]
[Date "2025.03.17"]
[Round "1.2"]
[White "Nemeth, Zalan"]
[Black "Moldagali, Beksultan"]
[Result "1/2-1/2"]
[Annotator "TA"]
[ECO "E11"]
[WhiteElo "2341"]
[BlackElo "2398"]
[PlyCount "94"]
[EventDate "2025.03.17"]
[EventType "tourn"]
[EventCountry "HUN"]
[SourceTitle "playchess.com"]
[Source "ChessBase"]
[SourceQuality "1"]
[TimeControl "5400+30"]

{[%evp 11,94,18,25,22,24,23,27,11,54,0,0,6,0,-35,-34,-34,-26,-43,-37,-43,0,-32,-34,-37,-37,-33,-31,-56,-33,-30,-37,-31,-20,-13,-18,-35,-32,-27,-27,-40,-22,-47,-30,-34,-31,-18,-23,-26,0,-40,-6,-55,-55,-55,-55,-55,-55,-55,-55,-55,-55,-55,-55,-55,-55,-55,-55,-55,-55,-55,-55,-55,-55,-55,-55,-55,-55,-55,-55,-55,-55,-55,-55,-55,-55]} 1. d4 {[%emt 0:00:03]} Nf6 {[%emt 0:00:27]} 2. c4 {[%emt 0:00:10]} e6 {[%emt 0:00:14]} 3. Nf3 {[%emt 0:00:21]} Bb4+ {[%emt 0:02:54]} 4. Nbd2 {[%emt 0:00:17]} b6 {[%emt 0:01:41]} 5. a3 {[%emt 0:00:29]} Bxd2+ {[%emt 0:00:16]} 6. Bxd2 {[%emt 0:00:57]} Bb7 {[%emt 0:01:58]} 7. e3 {[%emt 0:01:20] E11: Bogo-Indian.} d6 {[%emt 0:01:27]} 8. Qc2 {[%emt 0:01:43]} Ne4 {[%emt 0:00:48]} 9. Bd3 {[%emt 0:00:22] White has an edge.} f5 {[%emt 0:01:10]} 10. Rc1 {[%emt 0:07:13]} (10. d5 $14) 10... O-O {[%emt 0:04:00]} 11. O-O {[%emt 0:04:41]} Nd7 {[%emt 0:14:08]} 12. d5 {[%emt 0:10:28]} Ndc5 {[%emt 0:04:52]} 13. Be2 $146 {[%emt 0:04:51]} (13. b4 Nxd3 14. Qxd3 Qe7 15. Bc3 e5 16. Bb2 c6 17. dxc6 Bxc6 18. Nd2 Nxd2 19. Qxd2 {0-1 Manakova,M (2315)-Kovanova,B (2392) EU-ch (Women) 13th 2012 (6)}) 13... exd5 {[%emt 0:15:43]} 14. b4 {[%emt 0:14:34] White sacrificed a pawn} Ne6 {[%emt 0:00:56]} 15. Rfd1 {[%emt 0:01:46]} Kh8 {[%emt 0:03:57]} (15... dxc4 $5 16. Bxc4 d5 $11) 16. Be1 {[%emt 0:09:37]} dxc4 {[%emt 0:00:58]} 17. Bxc4 {[%emt 0:00:13]} N4g5 {[%emt 0:01:09]} 18. Nxg5 {[%emt 0:04:19]} Qxg5 {[%emt 0:05:47][%csl Gb7][%cal Rg5g2] [#]} 19. f4 {[%emt 0:00:06]} Qg6 {[%emt 0:00:15]} 20. Qf2 {[%emt 0:03:30]} Rac8 {[%emt 0:03:11]} 21. Qg3 {[%emt 0:07:27] Qxg6 is the strong threat.} Rfe8 {[%emt 0:06:15]} (21... Qf7 {seems wilder.} 22. Bc3 Rfe8 23. h3 Be4) 22. Qxg6 {[%emt 0:01:28]} hxg6 {[%emt 0:00:02]} 23. Kf2 {[%emt 0:02:30]} Kg8 {[%emt 0:01:47]} 24. Bc3 {[%emt 0:02:29]} Kf7 {[%emt 0:02:47]} 25. Bb2 {[%emt 0:02:08]} Re7 {[%emt 0:01:04]} 26. Bb3 {[%emt 0:02:52]} Rh8 {[%emt 0:08:41]} 27. h3 {[%emt 0:00:08][%cal Ob2g7]} Be4 {[%emt 0:01:28]} 28. Rd2 {[%emt 0:06:14]} Rh5 {[%emt 0:06:48]} 29. Bd1 {[%emt 0:01:04]} Rh8 {[%emt 0:00:02]} 30. Bb3 {[%emt 0:00:05]} Ra8 {[%emt 0:00:39]} 31. a4 {[%emt 0:01:55]} (31. g4 $11) 31... a5 $15 {[%emt 0:02:08] Black is slightly better.} 32. b5 {[%emt 0:00:04]} Rd8 {[%emt 0:00:03]} 33. Rcd1 {[%emt 0:00:38]} Kf8 {[%emt 0:01:35]} 34. Bxe6 {[%emt 0:00:24]} Rxe6 {[%emt 0:00:02]} 35. Rc1 {[%emt 0:00:39]} Re7 {[%emt 0:00:54]} 36. Rd4 {[%emt 0:00:30]} Rdd7 {[%emt 0:01:29]} 37. Rdc4 {[%emt 0:03:42]} Ke8 {[%emt 0:01:25]} 38. Bd4 {[%emt 0:00:11]} Bd5 {[%emt 0:01:35]} 39. R4c3 {[%emt 0:00:05]} Rf7 {[%emt 0:00:28]} 40. h4 {[%emt 0:00:07]} Kd8 {[%emt 0:01:28]} 41. g3 {[%emt 0:00:21]} Bb7 {[%emt 0:02:44]} 42. Kg1 {[%emt 0:00:24]} Rfe7 {[%emt 0:00:47]} 43. Kf2 {[%emt 0:00:06]} Re8 {[%emt 0:01:00]} 44. Kg1 {[%emt 0:00:48]} Be4 {[%emt 0:00:42]} 45. Kf2 {[%emt 0:00:06]} Bd5 {[%emt 0:00:02]} 46. Kg1 {[%emt 0:00:07]} Rde7 {[%emt 0:00:46]} 47. Kf2 {[%emt 0:00:12]} Bb7 {[%emt 0:00:37] Weighted Error Value: White=0.07 (flawless) /Black=0.06 (flawless)   Mistake:       	White=2     	---        Inaccurate:     	White=2     	Black=3      OK:         	White=14    	Black=15     Best:        	White=1     	Black=2} 1/2-1/2

[Event "Budapest One Week GM-B 03-2025"]
[Site "Budapest"]
[Date "2025.03.17"]
[Round "1.3"]
[White "Sklokin, Sergey"]
[Black "Tanenbaum, Zachary"]
[Result "0-1"]
[Annotator "TA"]
[ECO "C55"]
[WhiteElo "2338"]
[BlackElo "2306"]
[PlyCount "84"]
[EventDate "2025.03.17"]
[EventType "tourn"]
[EventCountry "HUN"]
[SourceTitle "playchess.com"]
[Source "ChessBase"]
[SourceQuality "1"]
[TimeControl "5400+30"]

{[%evp 11,84,34,41,37,41,35,39,21,22,29,39,29,31,14,37,9,29,16,4,7,10,17,57,20,29,25,23,20,20,0,0,-1,2,-38,-33,-49,-41,-108,-95,-101,-91,-100,-4,-102,-63,-83,-72,-91,-100,-86,-81,-150,-149,-162,-162,-164,-155,-160,-143,-173,-162,-987,-1002,-1068,-1068,-1043,-1040,-910,-910,-995,-291,-295,-272,-29983,-29984]} 1. e4 {[%emt 0:00:04]} e5 {[%emt 0:00:00]} 2. Nf3 {[%emt 0:00:10]} Nc6 {[%emt 0:00:03]} 3. Bc4 {[%emt 0:00:08]} Nf6 {[%emt 0:00:02]} 4. d3 {[%emt 0:00:12]} Be7 {[%emt 0:00:01]} 5. O-O {[%emt 0:00:13]} O-O {[%emt 0:00:04]} 6. c3 {[%emt 0:00:19]} d6 {[%emt 0:03:43]} 7. a4 {[%emt 0:01:46] C55: Two Knights: 4 d3, 4 d4 exd4 5 e5 and Max Lange Attack.} Be6 {[%emt 0:01:06]} 8. Bxe6 {[%emt 0:06:02]} fxe6 {[%emt 0:00:03]} 9. Nbd2 {[%emt 0:01:14] White is slightly better.} a5 {[%emt 0:08:38]} 10. Re1 {[%emt 0:03:54]} h6 {[%emt 0:08:12]} 11. Nf1 {[%emt 0:05:17]} Qd7 {[%emt 0:04:10]} 12. Ng3 {[%emt 0:09:19]} Rad8 {[%emt 0:02:57]} 13. d4 {[%emt 0:19:08]} exd4 {[%emt 0:03:02]} 14. Nxd4 {[%emt 0:04:02]} Rf7 $146 {[%emt 0:05:47]} (14... Rde8 15. Be3 Bd8 16. f3 b6 17. Qb3 Kh8 18. Rad1 Nxd4 19. Bxd4 Qf7 20. e5 Nd5 {0-1 Poulsen,M (2289)-Porras Mateo,F (2350) EU Small Countries ol 8th 2023 (4.2)}) 15. Qb3 {[%emt 0:09:41]} Nxd4 {[%emt 0:00:53]} 16. cxd4 {[%emt 0:01:21][%cal Oc1d2]} b6 {[%emt 0:12:58]} 17. f3 {[%emt 0:01:43]} d5 {[%emt 0:11:24]} 18. e5 {[%emt 0:00:38]} Bb4 {[%emt 0:01:37]} 19. Rd1 {[%emt 0:04:53]} Nh7 {[%emt 0:05:25]} 20. Qc2 {[%emt 0:05:15]} c5 {[%emt 0:04:42]} 21. Be3 {[%emt 0:02:57]} Rc8 {[%emt 0:01:38]} 22. Qg6 {[%emt 0:00:24]} Nf8 {[%emt 0:01:18]} 23. Qg4 {[%emt 0:00:23]} Kh7 {[%emt 0:01:23]} 24. dxc5 {[%emt 0:02:19]} ({White should play} 24. f4 $15) 24... bxc5 {[%emt 0:02:43]} 25. Ne4 {[%emt 0:02:50]} c4 {[%emt 0:03:27]} 26. Qh3 {[%emt 0:07:48]} Rf5 {[%emt 0:05:13]} ({Better is} 26... Be7 $17 {Strongly threatening ...Ng6.} 27. f4 Rb8 28. Ng5+ Bxg5 29. fxg5 Rb3 (29... Rxb2 30. gxh6 g5 31. Bd4 $17) 30. gxh6 g5) 27. Bxh6 {[%emt 0:01:58]} Kg8 {[%emt 0:03:11] Black keeps a firm grip on the game.} 28. Be3 {[%emt 0:01:35] Against Qa7} Rxe5 {[%emt 0:02:38]} 29. Bd4 {[%emt 0:01:01]} Rf5 {[%emt 0:01:12]} 30. Ng3 {[%emt 0:01:00]} Rf4 $36 {[%emt 0:02:27][%cal Of4d4][%mdl 2048] Black has strong initiative.} 31. Be5 {[%emt 0:00:20] [#]} (31. Ne2 $142 Rf7 32. Bf2) 31... Ng6 $1 $17 {[%emt 0:02:32][%cal Bf8g6,Bg6f4,Bf4d3][%mdl 32]} 32. Bxf4 {[%emt 0:01:55]} Nxf4 {[%emt 0:00:08]} 33. Qg4 {[%emt 0:00:07]} Nd3 {[%emt 0:00:25][%mdl 1024] ( -> ...Qa7+) Black has strong compensation.} 34. h3 {[%emt 0:03:12]} Bc5+ $1 {[%emt 0:03:12]} (34... Nxb2 35. Nh5 Rf8 36. Nxg7 (36. Rxd5 $2 Qa7+ 37. Rd4 e5 $19) 36... Bc5+ (36... Qxg7 37. Qxe6+ Qf7 38. Qg4+ Kh7 39. Qh4+ Kg7 40. Qd4+ Qf6 41. Qg4+ Qg6 42. Qd4+ Qf6 43. Qg4+ Qg6 44. Qd4+ Qf6 $11) 37. Kh2 Qxg7 38. Qxe6+ Qf7 39. Qxd5 (39. Qxf7+ Kxf7 40. Rxd5 Bb4 $17) 39... Qxd5 (39... Nxd1 40. Qg5+ Kh7 41. Qxc5 $17) 40. Rxd5) 35. Kf1 {[%emt 0:00:20][%csl Od3] Strong Square Black (d3)} Qf7 {[%emt 0:01:03][%cal Od3e5]} (35... Nxb2 36. Nh5 Nxd1 37. Rxd1 $11 (37. Nf6+ $2 Kf7 $19)) 36. Rd2 $2 {[%emt 0:01:36]} (36. b3 $2 Ne5 (36... Nf2 37. Qg5 $19) 37. Qh5 Qf4 $19 (37... Qxh5 38. Nxh5 cxb3 39. Rab1 $19)) (36. Re1 Nxe1 (36... Nxb2 $2 37. Rxe6 Nd3 38. Nf5 $18) 37. Rxe1) 36... Ne5 $1 $19 {[%emt 0:00:28]} 37. Qg5 {[%emt 0:02:51] [#]} Nxf3 $1 {[%emt 0:00:24][%mdl 512]} 38. gxf3 {[%emt 0:00:04]} Qxf3+ {[%emt 0:00:04]} 39. Ke1 {[%emt 0:00:05]} Rf8 {[%emt 0:01:01] ( -> ...Bd6)} 40. Qg4 {[%emt 0:00:41]} Bf2+ $2 {[%emt 0:00:33]} (40... Qe3+ 41. Kd1 Rf4) 41. Kf1 {[%emt 0:00:37] [#] and Qxf3 would now be decisive} Qe3 {[%emt 0:00:39]} ({Less strong is} 41... Bxg3+ 42. Qxf3 Rxf3+ 43. Kg2 $15) (41... Qxg3 42. Qxg3 Bxg3+ 43. Kg2 $15) 42. Nh5 {[%emt 0:00:08]} (42. Nf5 $19 Rxf5 (42... Qxd2 43. Qxg7#) (42... exf5 43. Qe2 $16) 43. Re2) 42... Bg3+ {[%emt 0:00:14] Weighted Error Value: White=0.51/Black=0.21 (precise)   Mistake:       	White=5     	Black=1      Inaccurate:     	White=3     	Black=2      OK:         	White=10    	Black=16     Best:        	---       	Black=1      Strong:       	---       	Black=1} ({Inferior is} 42... Qxd2 43. Qxg7#) 0-1

[Event "Budapest One Week GM-B 03-2025"]
[Site "Budapest"]
[Date "2025.03.17"]
[Round "1.4"]
[White "Plat, Vojtech"]
[Black "Yeganegi, Barad"]
[Result "1/2-1/2"]
[Annotator "TA"]
[ECO "D04"]
[WhiteElo "2465"]
[BlackElo "2347"]
[PlyCount "117"]
[EventDate "2025.03.17"]
[EventType "tourn"]
[EventCountry "HUN"]
[SourceTitle "playchess.com"]
[Source "ChessBase"]
[SourceQuality "1"]
[TimeControl "5400+30"]

{[%evp 9,117,-10,13,11,46,19,22,-32,-16,-15,-22,-56,-45,-67,-8,-13,0,0,0,0,0,0,7,0,20,19,3,0,0,0,-4,-21,-14,-16,13,0,0,0,0,0,0,-12,-4,-25,-35,-78,-74,-90,-97,-84,-87,-141,-88,-87,-93,-124,-127,-127,-89,-112,-85,-87,-81,-70,-70,-70,-70,-70,-70,-70,-70,-70,-70,-70,-70,-70,-70,-70,-58,-70,-60,-70,-70,-70,-70,-70,-70,-70,-70,-70,-70,-70,-46,-46,0,-5,0,-8,0,-12,0,0,0,0,0,0,0,0,0,0]} 1. d4 {[%emt 0:06:35]} Nf6 {[%emt 0:00:07]} 2. Nf3 {[%emt 0:00:36]} d5 {[%emt 0:00:09]} 3. e3 {[%emt 0:00:13]} c5 {[%emt 0:00:55]} 4. Bb5+ {[%emt 0:01:39]} Bd7 {[%emt 0:05:06]} 5. a4 {[%emt 0:07:54]} g6 {[%emt 0:07:12]} 6. dxc5 $146 {[%emt 0:02:18] D04: Colle System.} (6. O-O Qc7 7. c4 dxc4 8. d5 Bxb5 9. axb5 Nbd7 10. Nc3 Bg7 11. e4 O-O 12. Re1 {0-1 Masague Artero,G (2324)-Zemlyanskii,I (2492) Titled Tuesday intern op 19th Dec Early blitz 2023 (4)}) 6... a6 {[%emt 0:00:37]} 7. Be2 {[%emt 0:00:56]} Qa5+ {[%emt 0:00:11]} 8. Nc3 {[%emt 0:07:11]} (8. Nbd2 $11) 8... Qxc5 $15 {[%emt 0:03:26]} 9. O-O {[%emt 0:00:23]} Bg7 {[%emt 0:00:18]} 10. Ne5 {[%emt 0:08:23]} O-O {[%emt 0:16:11]} 11. Bf3 {[%emt 0:01:28][%cal Oe5d7]} e6 {[%emt 0:04:57]} (11... Rd8 $15) 12. e4 $11 {[%emt 0:06:08]} dxe4 {[%emt 0:06:01]} 13. Nxd7 {[%emt 0:00:13]} Nbxd7 {[%emt 0:00:03]} 14. Nxe4 {[%emt 0:00:09]} Nxe4 {[%emt 0:00:09]} 15. Bxe4 {[%emt 0:00:07]} Qc7 {[%emt 0:01:30]} (15... Rab8 $5) 16. Qe2 {[%emt 0:04:47]} Nc5 {[%emt 0:10:23]} 17. Bf3 {[%emt 0:00:12]} Rac8 {[%emt 0:00:25]} 18. a5 {[%emt 0:03:46]} Nd7 {[%emt 0:02:38]} 19. c3 {[%emt 0:01:16]} Ne5 {[%emt 0:00:08]} 20. Bf4 {[%emt 0:04:24]} Nxf3+ {[%emt 0:02:50]} 21. Qxf3 {[%emt 0:00:01]} Qe7 {[%emt 0:00:44]} 22. Be3 {[%emt 0:02:47]} Rfd8 {[%emt 0:00:39]} 23. g3 {[%emt 0:01:15]} Rd5 {[%emt 0:07:01]} 24. Bb6 {[%emt 0:02:58]} Rc6 {[%emt 0:02:14]} 25. Qe4 {[%emt 0:05:45]} Qd7 {[%emt 0:01:39]} 26. Be3 {[%emt 0:00:54]} Rcd6 {[%emt 0:03:17]} 27. c4 {[%emt 0:02:29]} Rd3 {[%emt 0:00:45]} 28. Bc5 {[%emt 0:05:14]} Qc6 {[%emt 0:00:35]} 29. Qxc6 {[%emt 0:00:32]} Rxc6 {[%emt 0:00:05]} 30. Ba3 {[%emt 0:02:49]} (30. Bb6 $142) 30... Bf8 {[%emt 0:02:22]} (30... Rxc4 $142 {and ...Rb3 should not be overlooked} 31. Rfd1 Rdd4) 31. Bxf8 $17 {[%emt 0:00:53]} Kxf8 {[%emt 0:00:07][%mdl 4096] Endgame KRR-KRR} 32. Ra4 {[%emt 0:04:16]} Rb3 {[%emt 0:01:20] Inhibits Rb4.} 33. Rb1 {[%emt 0:00:01]} Rd6 {[%emt 0:07:39]} 34. c5 {[%emt 0:02:14]} Rd2 {[%emt 0:00:10]} 35. Rc4 {[%emt 0:00:02]} Rf3 {[%emt 0:00:51]} ({Reject} 35... Rbxb2 $6 36. Rxb2 Rxb2 37. c6 bxc6 38. Rxc6 $11) 36. Rf1 {[%emt 0:00:34]} Rxb2 {[%emt 0:00:04]} 37. c6 {[%emt 0:00:03]} bxc6 {[%emt 0:00:02]} 38. Rxc6 {[%emt 0:00:05]} Ra2 {[%emt 0:00:03]} 39. Rxa6 {[%emt 0:00:03]} Rfa3 {[%emt 0:00:18]} 40. h4 {[%emt 0:00:28]} Rxa5 {[%emt 0:00:05]} 41. Rxa5 {[%emt 0:00:03]} Rxa5 $15 {[%emt 0:00:04] KR-KR. Black is a pawn up.} 42. Rb1 {[%emt 0:00:04]} Ra7 {[%emt 0:00:28]} 43. Kg2 {[%emt 0:00:04]} Kg7 {[%emt 0:00:08]} 44. Rb6 {[%emt 0:00:06]} Kf6 {[%emt 0:00:16]} 45. Rb5 {[%emt 0:00:28]} h5 {[%emt 0:00:20]} 46. Rb6 {[%emt 0:00:27]} Kf5 {[%emt 0:00:10]} 47. Rb4 {[%emt 0:00:40]} e5 {[%emt 0:00:13]} 48. Rb6 {[%emt 0:00:20]} f6 {[%emt 0:00:28]} 49. Rc6 {[%emt 0:02:23]} Ra2 {[%emt 0:00:16]} 50. Rc5 {[%emt 0:00:28]} g5 {[%emt 0:00:33]} 51. hxg5 {[%emt 0:00:12]} fxg5 {[%emt 0:00:09]} (51... Kxg5 $15 {deserves consideration.} 52. Rc8 Kg6) 52. Rb5 {[%emt 0:01:04] The position is equal.} Ra3 {[%emt 0:00:39]} 53. Rb4 {[%emt 0:00:49]} Ra2 {[%emt 0:00:16]} 54. Rb5 {[%emt 0:00:04]} Ra4 {[%emt 0:00:41]} 55. Rb8 {[%emt 0:00:09]} e4 {[%emt 0:04:06]} 56. Rb5+ {[%emt 0:00:17]} Kg4 {[%emt 0:00:18]} 57. Re5 {[%emt 0:00:02]} Rb4 {[%emt 0:00:20]} 58. Re8 {[%emt 0:00:03]} h4 {[%emt 0:00:09]} 59. Rxe4+ {[%emt 0:00:13] Weighted Error Value: White=0.10 (very precise) /Black=0.10 (very precise)   Mistake:       	White=2     	Black=3      Inaccurate:     	White=4     	Black=2      OK:         	White=19    	Black=16     Best:        	White=4     	Black=1} 1/2-1/2

[Event "Budapest One Week GM-B 03-2025"]
[Site "Budapest"]
[Date "2025.03.17"]
[Round "1.5"]
[White "Pap, Misa"]
[Black "Kraus, Tomas"]
[Result "1/2-1/2"]
[Annotator "TA"]
[ECO "B07"]
[WhiteElo "2457"]
[BlackElo "2447"]
[PlyCount "35"]
[EventDate "2025.03.17"]
[EventType "tourn"]
[EventCountry "HUN"]
[SourceTitle "playchess.com"]
[Source "ChessBase"]
[SourceQuality "1"]
[TimeControl "5400+30"]

{[%evp 12,21,43,39,45,27,31,28,41,20,40,-4]} 1. e4 {[%emt 0:00:08]} d6 {[%emt 0:00:27]} 2. d4 {[%emt 0:00:07]} Nf6 {[%emt 0:00:06]} 3. Nc3 {[%emt 0:00:09]} e5 {[%emt 0:00:05]} 4. dxe5 {[%emt 0:00:06]} dxe5 {[%emt 0:00:08]} 5. Qxd8+ {[%emt 0:00:09]} Kxd8 {[%emt 0:00:07]} 6. Bc4 {[%emt 0:00:10]} Bb4 {[%emt 0:01:12] 6...Bb4 is the modern continuation.} 7. Bd2 {[%emt 0:00:41]} Ke7 {[%emt 0:00:44] B07: Pirc Defence: Miscellaneous Systems.} 8. Nge2 {[%emt 0:00:37]} c6 {[%emt 0:02:18]} 9. f3 {[%emt 0:00:19]} Be6 {[%emt 0:00:46]} 10. Bb3 {[%emt 0:00:21]} Nbd7 {[%emt 0:01:10]} 11. O-O-O {[%emt 0:00:37] White took control after the opening.   Weighted Error Value: White=0.11 (very precise) /Black=0.05 (flawless)   Inaccurate:     	White=1     	---        OK:         	White=1     	Black=2} Nc5 $146 12. Na4 Bxd2+ 13. Rxd2 Nxa4 14. Bxa4 Bxa2 15. b3 b5 16. Kb2 bxa4 17. Kxa2 axb3+ 18. cxb3 {0-1 Wittmann,K (2040)-Scheremet,M (2175) Mittelfranken-chTB1 1415 2014 (8.1)} 1/2-1/2

[Event "Budapest One Week GM-B 03-2025"]
[Site "Budapest"]
[Date "2025.03.18"]
[Round "2.1"]
[White "Md Imran"]
[Black "Kraus, Tomas"]
[Result "1/2-1/2"]
[Annotator "RC"]
[ECO "D02"]
[WhiteElo "2421"]
[BlackElo "2447"]
[PlyCount "21"]
[EventDate "2025.03.17"]
[EventType "tourn"]
[EventCountry "HUN"]
[SourceTitle "playchess.com"]
[Source "ChessBase"]
[SourceQuality "1"]
[TimeControl "5400+30"]

1. d4 {[%emt 0:00:02]} d5 {[%emt 0:00:28]} 2. Nf3 {[%emt 0:00:16]} Nf6 {[%emt 0:00:14]} 3. c4 {[%emt 0:00:12]} e6 {[%emt 0:00:12]} 4. g3 {[%emt 0:00:15]} Bb4+ {[%emt 0:01:19]} 5. Nbd2 {[%emt 0:05:08]} O-O {[%emt 0:01:40]} 6. Bg2 {[%emt 0:00:33]} b6 {[%emt 0:01:08]} 7. a3 {[%emt 0:01:42]} Be7 {[%emt 0:00:57]} 8. O-O {[%emt 0:01:55]} Bb7 {[%emt 0:00:13]} 9. cxd5 {[%emt 0:00:50]} exd5 {[%emt 0:10:19]} 10. Ne5 {[%emt 0:03:54]} c5 {[%emt 0:02:01]} 11. Nb1 1/2-1/2

[Event "Budapest One Week GM-B 03-2025"]
[Site "Budapest"]
[Date "2025.03.18"]
[Round "2.2"]
[White "Yeganegi, Barad"]
[Black "Pap, Misa"]
[Result "1/2-1/2"]
[Annotator "RC"]
[ECO "A62"]
[WhiteElo "2347"]
[BlackElo "2457"]
[PlyCount "86"]
[EventDate "2025.03.17"]
[EventType "tourn"]
[EventCountry "HUN"]
[SourceTitle "playchess.com"]
[Source "ChessBase"]
[SourceQuality "1"]
[TimeControl "5400+30"]

1. d4 {[%emt 0:00:12]} Nf6 {[%emt 0:04:03]} 2. c4 {[%emt 0:00:07]} e6 {[%emt 0:00:46]} 3. g3 {[%emt 0:00:08]} c5 {[%emt 0:00:55]} 4. d5 {[%emt 0:00:08]} exd5 {[%emt 0:00:16]} 5. cxd5 {[%emt 0:00:09]} d6 {[%emt 0:00:38]} 6. Nc3 {[%emt 0:00:12]} g6 {[%emt 0:00:11]} 7. Bg2 {[%emt 0:00:05]} Bg7 {[%emt 0:00:10]} 8. Nf3 {[%emt 0:00:22]} O-O {[%emt 0:00:07]} 9. O-O {[%emt 0:00:13]} Na6 {[%emt 0:01:00]} 10. h3 {[%emt 0:08:44]} Re8 {[%emt 0:03:44]} 11. Re1 {[%emt 0:02:04]} Nc7 {[%emt 0:20:56]} 12. e4 {[%emt 0:03:44]} Nd7 {[%emt 0:03:38]} 13. Bf4 {[%emt 0:01:57]} Ne5 {[%emt 0:00:17]} 14. Nxe5 {[%emt 0:17:29]} Bxe5 {[%emt 0:00:12]} 15. Bxe5 {[%emt 0:04:46]} dxe5 {[%emt 0:00:04]} 16. d6 {[%emt 0:01:54]} Ne6 {[%emt 0:00:06]} 17. Nd5 {[%emt 0:00:09]} Kg7 {[%emt 0:03:28]} 18. f4 {[%emt 0:01:57]} Rf8 {[%emt 0:16:04]} 19. f5 {[%emt 0:26:05]} Nd4 {[%emt 0:00:15]} 20. f6+ {[%emt 0:00:03]} Kh8 {[%emt 0:01:06]} 21. Qc1 {[%emt 0:00:12]} Qxd6 {[%emt 0:01:12]} 22. Qh6 {[%emt 0:00:10]} Rg8 {[%emt 0:00:27]} 23. Rf1 {[%emt 0:01:33]} Be6 {[%emt 0:15:29]} 24. Ne7 {[%emt 0:01:32]} g5 {[%emt 0:01:31]} 25. Kh2 {[%emt 0:03:07]} Rae8 {[%emt 0:00:48]} 26. Nxg8 {[%emt 0:06:48]} Rxg8 {[%emt 0:00:41]} 27. Rad1 {[%emt 0:01:22]} Bxa2 {[%emt 0:03:42]} 28. Ra1 {[%emt 0:05:19]} Rg6 {[%emt 0:07:58]} 29. Qh5 {[%emt 0:01:55]} Bc4 {[%emt 0:04:12]} 30. Rxa7 {[%emt 0:00:33]} h6 {[%emt 0:00:21]} 31. Qxg6 {[%emt 0:02:52]} fxg6 {[%emt 0:00:05]} 32. Ra8+ {[%emt 0:00:03]} Kh7 {[%emt 0:00:04]} 33. f7 {[%emt 0:00:03]} Ne6 {[%emt 0:00:36]} 34. Rf6 {[%emt 0:01:52]} Qe7 {[%emt 0:02:34]} 35. Rxe6 {[%emt 0:00:10]} Qxf7 {[%emt 0:00:03]} 36. Rxe5 {[%emt 0:00:36]} Be6 {[%emt 0:04:02]} 37. Rxc5 {[%emt 0:00:38]} h5 {[%emt 0:00:35]} 38. Rxg5 {[%emt 0:04:09]} Qf2 {[%emt 0:00:12]} 39. Rb5 {[%emt 0:05:01]} b6 {[%emt 0:01:10]} 40. Ra1 {[%emt 0:01:26]} Bc4 {[%emt 0:01:21]} 41. Rb4 {[%emt 0:00:26]} b5 {[%emt 0:00:57]} 42. b3 {[%emt 0:00:04]} Be2 {[%emt 0:01:19]} 43. e5 {[%emt 0:00:17]} Qc5 {[%emt 0:02:13]} 1/2-1/2

[Event "Budapest One Week GM-B 03-2025"]
[Site "Budapest"]
[Date "2025.03.18"]
[Round "2.4"]
[White "Moldagali, Beksultan"]
[Black "Sklokin, Sergey"]
[Result "1/2-1/2"]
[Annotator "RC"]
[ECO "B15"]
[WhiteElo "2398"]
[BlackElo "2338"]
[PlyCount "101"]
[EventDate "2025.03.17"]
[EventType "tourn"]
[EventCountry "HUN"]
[SourceTitle "playchess.com"]
[Source "ChessBase"]
[SourceQuality "1"]
[TimeControl "5400+30"]

1. e4 {[%emt 0:00:09]} c6 {[%emt 0:00:05]} 2. Nc3 {[%emt 0:02:56]} d5 {[%emt 0:00:10]} 3. d4 {[%emt 0:07:33]} dxe4 {[%emt 0:00:09]} 4. Nxe4 {[%emt 0:00:02]} Nf6 {[%emt 0:00:11]} 5. Nxf6+ {[%emt 0:00:04]} exf6 {[%emt 0:00:05]} 6. Bd3 {[%emt 0:03:12]} Qxd4 {[%emt 0:00:38]} 7. Nf3 {[%emt 0:00:06]} Qd8 {[%emt 0:00:06]} 8. O-O {[%emt 0:00:54]} Be6 {[%emt 0:12:27]} 9. Re1 {[%emt 0:01:35]} Bc5 {[%emt 0:06:17]} 10. Qe2 {[%emt 0:12:02]} O-O {[%emt 0:06:50]} 11. b4 {[%emt 0:00:26]} Bd6 {[%emt 0:06:25]} 12. Bb2 {[%emt 0:04:07]} Re8 {[%emt 0:10:04]} 13. Rad1 {[%emt 0:10:05]} Na6 {[%emt 0:07:02]} 14. Bxa6 {[%emt 0:21:29]} bxa6 {[%emt 0:00:24]} 15. Qxa6 {[%emt 0:00:12]} Qc7 {[%emt 0:04:28]} 16. a3 {[%emt 0:01:41]} Bd5 {[%emt 0:07:33]} 17. h3 {[%emt 0:04:33]} Bxf3 {[%emt 0:06:16]} 18. gxf3 {[%emt 0:00:40]} Be5 {[%emt 0:00:51]} 19. Bc1 {[%emt 0:04:24]} h6 {[%emt 0:08:39]} 20. Qc4 {[%emt 0:02:14]} f5 {[%emt 0:03:47]} 21. Re2 {[%emt 0:06:58]} Bf6 {[%emt 0:04:02]} 22. Bf4 {[%emt 0:00:46]} Qb7 {[%emt 0:00:21]} 23. Kg2 {[%emt 0:05:34]} g5 {[%emt 0:07:11]} 24. Bd6 {[%emt 0:03:25]} Qb5 {[%emt 0:02:13]} 25. Rxe8+ {[%emt 0:04:20]} Rxe8 {[%emt 0:00:06]} 26. Qd3 {[%emt 0:00:08]} Qxd3 {[%emt 0:04:03]} 27. Rxd3 {[%emt 0:00:01]} Re2 {[%emt 0:00:31]} 28. Bc5 {[%emt 0:00:21]} Rxc2 {[%emt 0:00:29]} 29. Bxa7 {[%emt 0:00:03]} Ra2 {[%emt 0:00:45]} 30. Bc5 {[%emt 0:02:15]} Kg7 {[%emt 0:00:57]} 31. Rd6 {[%emt 0:01:27]} Rxa3 {[%emt 0:00:29]} 32. Rxc6 {[%emt 0:00:19]} Rb3 {[%emt 0:00:34]} 33. Rb6 {[%emt 0:01:07]} h5 {[%emt 0:01:00]} 34. Rb7 {[%emt 0:01:26]} g4 {[%emt 0:00:42]} 35. fxg4 {[%emt 0:00:08]} fxg4 {[%emt 0:00:15]} 36. hxg4 {[%emt 0:00:03]} hxg4 {[%emt 0:00:07]} 37. b5 {[%emt 0:00:18]} Be5 {[%emt 0:01:36]} 38. b6 {[%emt 0:01:43]} Kf6 {[%emt 0:00:59]} 39. Ra7 {[%emt 0:00:24]} Ke6 {[%emt 0:00:33]} 40. Ra4 {[%emt 0:00:41]} f5 {[%emt 0:00:14]} 41. Be3 {[%emt 0:00:30]} Rb1 {[%emt 0:00:36]} 42. Rc4 {[%emt 0:00:17]} Kd5 {[%emt 0:00:27]} 43. Rc5+ {[%emt 0:00:19]} Kd6 {[%emt 0:00:09]} 44. Rc4 {[%emt 0:00:27]} Kd5 {[%emt 0:00:16]} 45. Ra4 {[%emt 0:00:19]} Kd6 {[%emt 0:00:26]} 46. Rc4 {[%emt 0:00:44]} Ke6 {[%emt 0:00:14]} 47. Rc6+ {[%emt 0:00:58]} Kd5 {[%emt 0:00:20]} 48. Rc5+ {[%emt 0:00:04]} Kd6 {[%emt 0:00:05]} 49. Rc4 {[%emt 0:00:06]} Kd5 {[%emt 0:00:22]} 50. Rc5+ {[%emt 0:00:06]} Kd6 {[%emt 0:00:18]} 51. Rc4 {[%emt 0:00:07]} 1/2-1/2